[Event "Late-Titled-Tuesday-Blitz-November-28-2023"]
[Site "Chess.com"]
[Date "2023.11.28"]
[Round "1"]
[White "Jahonas"]
[Black "Rodalquilar"]
[Result "0-1"]
[WhiteElo "2400"]
[BlackElo "2737"]
[TimeControl "180+1"]
[EndTime "14:07:38 PST"]
[Termination "Rodalquilar won by resignation"]

1. e4 {[%clk 0:03:00.9]} 1... d5 {[%clk 0:03:00.1]} 2. exd5 {[%clk 0:03:00.5]}
2... Qxd5 {[%clk 0:03:01]} 3. Nc3 {[%clk 0:03:00.8]} 3... Qa5 {[%clk 0:03:01.1]}
4. Nf3 {[%clk 0:03:00.9]} 4... Nf6 {[%clk 0:03:01.5]} 5. Be2 {[%clk 0:03:00.7]}
5... Bf5 {[%clk 0:02:59.3]} 6. d3 {[%clk 0:03:00.4]} 6... c6 {[%clk 0:02:58.7]}
7. O-O {[%clk 0:03:00.2]} 7... e6 {[%clk 0:02:58.6]} 8. Bf4 {[%clk 0:02:58.7]}
8... Nbd7 {[%clk 0:02:57]} 9. a3 {[%clk 0:02:57.5]} 9... Be7 {[%clk 0:02:56]}
10. Bg3 {[%clk 0:02:55.5]} 10... h6 {[%clk 0:02:55.4]} 11. Nd4 {[%clk
0:02:51.1]} 11... Bh7 {[%clk 0:02:54.5]} 12. b4 {[%clk 0:02:48]} 12... Qb6
{[%clk 0:02:49.5]} 13. Nb3 {[%clk 0:02:42.9]} 13... O-O {[%clk 0:02:48.3]} 14.
Kh1 {[%clk 0:02:40.8]} 14... Nd5 {[%clk 0:02:44.7]} 15. Na4 {[%clk 0:02:32.2]}
15... Qd8 {[%clk 0:02:40.9]} 16. Bf3 {[%clk 0:02:26]} 16... Bf6 {[%clk
0:02:33.4]} 17. d4 {[%clk 0:02:21.3]} 17... N5b6 {[%clk 0:02:16.5]} 18. Nac5
{[%clk 0:02:14.8]} 18... Nxc5 {[%clk 0:02:16.1]} 19. bxc5 {[%clk 0:02:07.5]}
19... Nd5 {[%clk 0:01:59]} 20. c4 {[%clk 0:02:05.3]} 20... Ne7 {[%clk
0:01:59.3]} 21. Bd6 {[%clk 0:02:04.2]} 21... Re8 {[%clk 0:01:59.6]} 22. Qd2
{[%clk 0:01:57]} 22... Nf5 {[%clk 0:01:59.7]} 23. Rfd1 {[%clk 0:01:50.9]} 23...
Nxd6 {[%clk 0:01:59.1]} 24. cxd6 {[%clk 0:01:49.6]} 24... Qxd6 {[%clk 0:02:00]}
25. Na5 {[%clk 0:01:43.6]} 25... Qc7 {[%clk 0:01:55.9]} 26. Qb4 {[%clk
0:01:40.6]} 26... Rab8 {[%clk 0:01:53.2]} 27. Rac1 {[%clk 0:01:39.9]} 27... Bxd4
{[%clk 0:01:47.7]} 28. c5 {[%clk 0:01:25.2]} 28... e5 {[%clk 0:01:20.7]} 29. Nc4
{[%clk 0:01:13.1]} 29... Red8 {[%clk 0:01:20.8]} 30. Nd6 {[%clk 0:01:12]} 30...
b6 {[%clk 0:01:20.9]} 31. Ne4 {[%clk 0:01:03.4]} 31... bxc5 {[%clk 0:01:17.8]}
32. Qc4 {[%clk 0:01:03]} 32... Qe7 {[%clk 0:00:49.9]} 33. h3 {[%clk 0:00:56.6]}
33... Bf5 {[%clk 0:00:49.1]} 34. Nxc5 {[%clk 0:00:55.2]} 34... Bxc5 {[%clk
0:00:47.6]} 35. Rxd8+ {[%clk 0:00:53.7]} 35... Rxd8 {[%clk 0:00:46.8]} 36. Qxc5
{[%clk 0:00:54.6]} 36... Qxc5 {[%clk 0:00:46.6]} 37. Rxc5 {[%clk 0:00:55.5]}
37... Bd7 {[%clk 0:00:23.3]} 38. Rxe5 {[%clk 0:00:52.6]} 38... Rc8 {[%clk
0:00:09.3]} 39. Re7 {[%clk 0:00:52.6]} 39... Be6 {[%clk 0:00:09.2]} 40. Rxa7
{[%clk 0:00:52.2]} 40... c5 {[%clk 0:00:09.9]} 41. Bb7 {[%clk 0:00:51.2]} 41...
Rc7 {[%clk 0:00:08.2]} 42. Ra8+ {[%clk 0:00:49.6]} 42... Kh7 {[%clk 0:00:08.7]}
43. Be4+ {[%clk 0:00:49.5]} 43... g6 {[%clk 0:00:08.2]} 44. a4 {[%clk
0:00:46.1]} 44... c4 {[%clk 0:00:08.7]} 45. a5 {[%clk 0:00:45.7]} 45... c3
{[%clk 0:00:09.3]} 46. Bc2 {[%clk 0:00:43.5]} 46... Rb7 {[%clk 0:00:08.2]} 47.
a6 {[%clk 0:00:42.8]} 47... Rb2 {[%clk 0:00:08.5]} 48. Be4 {[%clk 0:00:37.2]}
48... c2 {[%clk 0:00:08.3]} 49. Bxc2 {[%clk 0:00:31.3]} 49... Rxc2 {[%clk
0:00:09.2]} 50. a7 {[%clk 0:00:31.8]} 50... Ra2 {[%clk 0:00:09.5]} 51. f4 {[%clk
0:00:30.8]} 51... Kg7 {[%clk 0:00:09.7]} 52. Kg1 {[%clk 0:00:28.5]} 52... Bd5
{[%clk 0:00:09.7]} 53. Rd8 {[%clk 0:00:28.1]} 53... Bxg2 {[%clk 0:00:09.9]} 54.
Rd2 {[%clk 0:00:25.4]} 54... Rxd2 {[%clk 0:00:06.8]} 0-1

[Event "Late-Titled-Tuesday-Blitz-November-28-2023"]
[Site "Chess.com"]
[Date "2023.11.28"]
[Round "1"]
[White "FuenfgegenWilly"]
[Black "Elsa167"]
[Result "0-1"]
[WhiteElo "2467"]
[BlackElo "2916"]
[TimeControl "180+1"]
[EndTime "14:07:39 PST"]
[Termination "Elsa167 won by resignation"]

1. e4 {[%clk 0:02:56.4]} 1... c6 {[%clk 0:02:56.8]} 2. Nc3 {[%clk 0:02:55.5]}
2... d5 {[%clk 0:02:57.4]} 3. Qe2 {[%clk 0:02:55.2]} 3... dxe4 {[%clk
0:02:51.9]} 4. Nxe4 {[%clk 0:02:56.1]} 4... Bf5 {[%clk 0:02:42.9]} 5. g4 {[%clk
0:02:54.7]} 5... Bxe4 {[%clk 0:02:40.9]} 6. Qxe4 {[%clk 0:02:55.6]} 6... Nf6
{[%clk 0:02:41]} 7. Qe2 {[%clk 0:02:55.3]} 7... Qd5 {[%clk 0:02:39.8]} 8. f3
{[%clk 0:02:55.8]} 8... Nbd7 {[%clk 0:02:29.1]} 9. Bg2 {[%clk 0:02:50.6]} 9...
g6 {[%clk 0:02:23.2]} 10. f4 {[%clk 0:02:37.6]} 10... Qd6 {[%clk 0:02:17.1]} 11.
d3 {[%clk 0:02:27.2]} 11... Bg7 {[%clk 0:02:15]} 12. Nh3 {[%clk 0:02:26.7]}
12... h5 {[%clk 0:02:04.6]} 13. g5 {[%clk 0:02:24.5]} 13... Ng4 {[%clk
0:02:04.2]} 14. Nf2 {[%clk 0:02:19.5]} 14... Qb4+ {[%clk 0:01:53]} 15. Kf1
{[%clk 0:02:02]} 15... Nxf2 {[%clk 0:01:45.3]} 16. Qxf2 {[%clk 0:02:00.2]} 16...
O-O {[%clk 0:01:35.4]} 17. c3 {[%clk 0:01:57.7]} 17... Qb5 {[%clk 0:01:34.5]}
18. Be4 {[%clk 0:01:45.4]} 18... Nc5 {[%clk 0:01:28.9]} 19. Kg2 {[%clk
0:01:27.6]} 19... Nxe4 {[%clk 0:01:15.8]} 20. dxe4 {[%clk 0:01:27.6]} 20... Rfd8
{[%clk 0:01:16.1]} 21. Be3 {[%clk 0:01:24.5]} 21... Qa4 {[%clk 0:01:06.7]} 22.
b3 {[%clk 0:01:09.5]} 22... Qxe4+ {[%clk 0:01:06.2]} 23. Qf3 {[%clk 0:01:05.8]}
23... Qxf3+ {[%clk 0:01:03.9]} 24. Kxf3 {[%clk 0:01:06.7]} 24... Bxc3 {[%clk
0:01:01.1]} 25. Rac1 {[%clk 0:01:06.3]} 25... Bd2 {[%clk 0:00:59.3]} 26. Rc2
{[%clk 0:01:03.7]} 26... Bxe3 {[%clk 0:00:58.7]} 27. Kxe3 {[%clk 0:01:04.6]}
27... Rd6 {[%clk 0:00:58.5]} 28. b4 {[%clk 0:01:00.1]} 28... Rad8 {[%clk
0:00:57.3]} 29. Rhc1 {[%clk 0:00:58.7]} 29... Rd3+ {[%clk 0:00:57.4]} 30. Kf2
{[%clk 0:00:54]} 30... R3d4 {[%clk 0:00:57.7]} 31. b5 {[%clk 0:00:51.7]} 31...
Rd2+ {[%clk 0:00:49.1]} 32. Ke3 {[%clk 0:00:47.5]} 32... Rxc2 {[%clk 0:00:46.9]}
33. Rxc2 {[%clk 0:00:47.2]} 33... Rd6 {[%clk 0:00:44.6]} 34. a4 {[%clk 0:00:44]}
34... cxb5 {[%clk 0:00:39.2]} 35. axb5 {[%clk 0:00:42]} 35... Rb6 {[%clk
0:00:37.3]} 36. Rc5 {[%clk 0:00:34.8]} 36... e6 {[%clk 0:00:36.8]} 37. Kd4
{[%clk 0:00:33.7]} 37... a6 {[%clk 0:00:37]} 38. bxa6 {[%clk 0:00:33.5]} 38...
bxa6 {[%clk 0:00:37.3]} 39. Rc7 {[%clk 0:00:32.7]} 39... Kg7 {[%clk 0:00:35.6]}
40. Ra7 {[%clk 0:00:32.1]} 40... Rb4+ {[%clk 0:00:34.1]} 41. Ke5 {[%clk
0:00:31.4]} 41... Ra4 {[%clk 0:00:33.2]} 42. h4 {[%clk 0:00:30.3]} 42... a5
{[%clk 0:00:32.5]} 43. Ra8 {[%clk 0:00:28.1]} 43... Ra1 {[%clk 0:00:32.7]} 44.
Kd6 {[%clk 0:00:27.5]} 44... Ra4 {[%clk 0:00:19.4]} 45. Ke5 {[%clk 0:00:17.2]}
45... Ra1 {[%clk 0:00:19.3]} 46. Kd6 {[%clk 0:00:16.4]} 46... Rf1 {[%clk
0:00:18.1]} 47. Ke5 {[%clk 0:00:16.2]} 47... Re1+ {[%clk 0:00:18.1]} 48. Kd6
{[%clk 0:00:16.6]} 48... Re4 {[%clk 0:00:18.5]} 49. f5 {[%clk 0:00:14.6]} 49...
exf5 {[%clk 0:00:18]} 50. Rxa5 {[%clk 0:00:10.7]} 50... Rxh4 {[%clk 0:00:18.1]}
51. Re5 {[%clk 0:00:09.7]} 51... Rd4+ {[%clk 0:00:17.2]} 52. Ke7 {[%clk
0:00:09.7]} 52... Re4 {[%clk 0:00:17.6]} 0-1

[Event "Late-Titled-Tuesday-Blitz-November-28-2023"]
[Site "Chess.com"]
[Date "2023.11.28"]
[Round "1"]
[White "GMJustin"]
[Black "Mikhail_Golubev"]
[Result "1-0"]
[WhiteElo "2324"]
[BlackElo "2592"]
[TimeControl "180+1"]
[EndTime "14:07:42 PST"]
[Termination "GMJustin won on time"]

1. d4 {[%clk 0:02:54.7]} 1... Nf6 {[%clk 0:02:59.1]} 2. c4 {[%clk 0:02:54.6]}
2... g6 {[%clk 0:02:58.9]} 3. Nc3 {[%clk 0:02:54]} 3... Bg7 {[%clk 0:02:59.3]}
4. e4 {[%clk 0:02:53.9]} 4... d6 {[%clk 0:02:59.4]} 5. Nf3 {[%clk 0:02:52.3]}
5... O-O {[%clk 0:02:59]} 6. Be2 {[%clk 0:02:52.1]} 6... e5 {[%clk 0:02:58.2]}
7. Be3 {[%clk 0:02:51.8]} 7... h6 {[%clk 0:02:54.3]} 8. O-O {[%clk 0:02:34.9]}
8... Ng4 {[%clk 0:02:53.4]} 9. Bc1 {[%clk 0:02:31.7]} 9... Na6 {[%clk
0:02:52.9]} 10. d5 {[%clk 0:02:19.4]} 10... f5 {[%clk 0:02:46.6]} 11. exf5
{[%clk 0:01:50.1]} 11... gxf5 {[%clk 0:02:45]} 12. g3 {[%clk 0:01:45.8]} 12...
Qe8 {[%clk 0:02:15.6]} 13. Nh4 {[%clk 0:01:39.2]} 13... Nf6 {[%clk 0:02:08.9]}
14. f4 {[%clk 0:01:10.9]} 14... e4 {[%clk 0:01:38]} 15. Be3 {[%clk 0:01:05.8]}
15... Nc5 {[%clk 0:01:38.1]} 16. b4 {[%clk 0:00:44.8]} 16... Nd3 {[%clk
0:01:12.8]} 17. Bxd3 {[%clk 0:00:43.1]} 17... exd3 {[%clk 0:01:13.7]} 18. Qxd3
{[%clk 0:00:38.5]} 18... Bd7 {[%clk 0:01:08.3]} 19. Bd4 {[%clk 0:00:36.5]} 19...
Qh5 {[%clk 0:00:59.8]} 20. Rae1 {[%clk 0:00:35.3]} 20... Rae8 {[%clk 0:00:59.6]}
21. a4 {[%clk 0:00:28.4]} 21... Rxe1 {[%clk 0:00:49.8]} 22. Rxe1 {[%clk
0:00:27.9]} 22... Re8 {[%clk 0:00:50.5]} 23. Rxe8+ {[%clk 0:00:26.2]} 23... Qxe8
{[%clk 0:00:51.4]} 24. Qe2 {[%clk 0:00:08]} 24... Qf7 {[%clk 0:00:42.3]} 25. b5
{[%clk 0:00:06.4]} 25... a6 {[%clk 0:00:37.9]} 26. Qd2 {[%clk 0:00:02]} 26...
Bf8 {[%clk 0:00:28.4]} 27. Kf1 {[%clk 0:00:01.9]} 27... Be7 {[%clk 0:00:28.2]}
28. Qd3 {[%clk 0:00:01.9]} 28... Ng4 {[%clk 0:00:27]} 29. Nf3 {[%clk 0:00:01.9]}
29... Qh5 {[%clk 0:00:25.5]} 30. Qe2 {[%clk 0:00:01.8]} 30... Kf8 {[%clk
0:00:21.8]} 31. Qg2 {[%clk 0:00:01.8]} 31... Qf7 {[%clk 0:00:19.6]} 32. h3
{[%clk 0:00:02]} 32... Nf6 {[%clk 0:00:19.3]} 33. Qe2 {[%clk 0:00:02.2]} 33...
Nh5 {[%clk 0:00:18.8]} 34. Qf2 {[%clk 0:00:02]} 34... Qg6 {[%clk 0:00:17]} 35.
Ne2 {[%clk 0:00:02]} 35... axb5 {[%clk 0:00:17.6]} 36. axb5 {[%clk 0:00:01.6]}
36... Qe8 {[%clk 0:00:17.4]} 37. Bc3 {[%clk 0:00:01.7]} 37... Qa8 {[%clk
0:00:15.2]} 38. Nfd4 {[%clk 0:00:01.8]} 38... Qa4 {[%clk 0:00:13.2]} 39. Qf3
{[%clk 0:00:01.8]} 39... Nf6 {[%clk 0:00:11.4]} 40. Qd3 {[%clk 0:00:02.1]} 40...
Ne4 {[%clk 0:00:10.5]} 41. Ne6+ {[%clk 0:00:02.3]} 41... Bxe6 {[%clk 0:00:10]}
42. dxe6 {[%clk 0:00:02.7]} 42... b6 {[%clk 0:00:07.6]} 43. Bd4 {[%clk 0:00:03]}
43... Qa2 {[%clk 0:00:04.2]} 44. g4 {[%clk 0:00:02.7]} 44... Bh4 {[%clk
0:00:03]} 45. Kg2 {[%clk 0:00:02.3]} 1-0

[Event "Late-Titled-Tuesday-Blitz-November-28-2023"]
[Site "Chess.com"]
[Date "2023.11.28"]
[Round "1"]
[White "dorpato"]
[Black "whitemirrorninja"]
[Result "0-1"]
[WhiteElo "2089"]
[BlackElo "2527"]
[TimeControl "180+1"]
[EndTime "14:07:42 PST"]
[Termination "whitemirrorninja won by resignation"]

1. e4 {[%clk 0:02:55.7]} 1... e5 {[%clk 0:02:59.5]} 2. Nf3 {[%clk 0:02:53.9]}
2... Nc6 {[%clk 0:02:59.9]} 3. d4 {[%clk 0:02:53.8]} 3... exd4 {[%clk
0:02:57.6]} 4. c3 {[%clk 0:02:54.4]} 4... d5 {[%clk 0:02:54.4]} 5. exd5 {[%clk
0:02:54]} 5... Qxd5 {[%clk 0:02:55.3]} 6. cxd4 {[%clk 0:02:54.4]} 6... Bb4+
{[%clk 0:02:54.8]} 7. Nc3 {[%clk 0:02:53.9]} 7... Bg4 {[%clk 0:02:53]} 8. Be2
{[%clk 0:02:53.7]} 8... O-O-O {[%clk 0:02:36.6]} 9. O-O {[%clk 0:02:47.5]} 9...
Qa5 {[%clk 0:02:18.6]} 10. Be3 {[%clk 0:02:16.9]} 10... Nf6 {[%clk 0:02:16.7]}
11. Rc1 {[%clk 0:01:51.5]} 11... Rhe8 {[%clk 0:02:14.4]} 12. a3 {[%clk
0:01:49.1]} 12... Bxc3 {[%clk 0:02:14.6]} 13. Rxc3 {[%clk 0:01:46.1]} 13... Nd5
{[%clk 0:02:01.7]} 14. Rd3 {[%clk 0:01:32.4]} 14... Nxe3 {[%clk 0:01:59.8]} 15.
fxe3 {[%clk 0:01:18.8]} 15... f6 {[%clk 0:01:40.6]} 16. h3 {[%clk 0:01:16.2]}
16... Be6 {[%clk 0:01:36.8]} 17. b4 {[%clk 0:01:09.2]} 17... Qd5 {[%clk
0:01:34.5]} 18. Rc3 {[%clk 0:01:04.5]} 18... Qd6 {[%clk 0:01:30.9]} 19. Qc2
{[%clk 0:00:53.9]} 19... Kb8 {[%clk 0:01:29.2]} 20. Rc1 {[%clk 0:00:49.4]} 20...
Rc8 {[%clk 0:01:26.6]} 21. Bb5 {[%clk 0:00:44.5]} 21... Bd7 {[%clk 0:01:26.4]}
22. Kh1 {[%clk 0:00:20.3]} 22... Nxb4 {[%clk 0:01:22.4]} 23. axb4 {[%clk
0:00:17.8]} 23... Bxb5 {[%clk 0:01:23.1]} 24. Rc5 {[%clk 0:00:17.4]} 24... c6
{[%clk 0:01:18.5]} 25. Qc3 {[%clk 0:00:14.2]} 25... a6 {[%clk 0:01:14.1]} 26. d5
{[%clk 0:00:13.5]} 26... Qd7 {[%clk 0:01:05.6]} 27. dxc6 {[%clk 0:00:13.4]}
27... Rxc6 {[%clk 0:01:05.5]} 28. Rxc6 {[%clk 0:00:12.1]} 28... Qxc6 {[%clk
0:01:02]} 29. Qd2 {[%clk 0:00:11]} 29... Qe6 {[%clk 0:01:01.5]} 30. e4 {[%clk
0:00:08.6]} 30... Qxe4 {[%clk 0:00:57.5]} 31. Qd6+ {[%clk 0:00:09.2]} 31... Ka8
{[%clk 0:00:57.8]} 32. Rc7 {[%clk 0:00:06.9]} 32... Bc6 {[%clk 0:00:55.3]} 33.
Rxg7 {[%clk 0:00:06.1]} 33... Qb1+ {[%clk 0:00:50]} 34. Kh2 {[%clk 0:00:05.9]}
34... Bxf3 {[%clk 0:00:50.2]} 35. gxf3 {[%clk 0:00:06]} 35... Re2+ {[%clk
0:00:50.7]} 36. Rg2 {[%clk 0:00:06.4]} 36... Rxg2+ {[%clk 0:00:38.4]} 37. Kxg2
{[%clk 0:00:07.3]} 37... Qb2+ {[%clk 0:00:31.3]} 38. Kg1 {[%clk 0:00:05.4]}
38... Qc3 {[%clk 0:00:25.1]} 39. Qd8+ {[%clk 0:00:04.8]} 39... Ka7 {[%clk
0:00:25.3]} 40. Qd6 {[%clk 0:00:03.8]} 40... Qe3+ {[%clk 0:00:20.6]} 41. Kg2
{[%clk 0:00:03.4]} 41... Qe2+ {[%clk 0:00:21.3]} 42. Kg3 {[%clk 0:00:03.7]}
42... Qe5+ {[%clk 0:00:21.1]} 43. Qxe5 {[%clk 0:00:03.5]} 43... fxe5 {[%clk
0:00:22]} 44. Kg4 {[%clk 0:00:04.2]} 44... b6 {[%clk 0:00:20.6]} 45. Kf5 {[%clk
0:00:04.9]} 45... a5 {[%clk 0:00:21]} 46. Kxe5 {[%clk 0:00:04.9]} 46... a4
{[%clk 0:00:20.2]} 47. Kd4 {[%clk 0:00:05.2]} 47... b5 {[%clk 0:00:19.7]} 48.
Kc3 {[%clk 0:00:05.5]} 48... Kb7 {[%clk 0:00:20]} 49. f4 {[%clk 0:00:04.4]}
49... Kc7 {[%clk 0:00:20.6]} 50. f5 {[%clk 0:00:05]} 50... Kd7 {[%clk
0:00:21.3]} 51. Kd4 {[%clk 0:00:04.9]} 51... Ke7 {[%clk 0:00:20.7]} 52. Ke5
{[%clk 0:00:05.1]} 52... Kf7 {[%clk 0:00:20.6]} 53. f6 {[%clk 0:00:05.6]} 0-1

[Event "Late-Titled-Tuesday-Blitz-November-28-2023"]
[Site "Chess.com"]
[Date "2023.11.28"]
[Round "1"]
[White "GHANDEEVAM2003"]
[Black "noblerone"]
[Result "1-0"]
[WhiteElo "3146"]
[BlackElo "2501"]
[TimeControl "180+1"]
[EndTime "14:07:43 PST"]
[Termination "GHANDEEVAM2003 won on time"]

1. c4 {[%clk 0:02:57.7]} 1... c6 {[%clk 0:02:53.4]} 2. Nf3 {[%clk 0:02:55.7]}
2... d5 {[%clk 0:02:53.6]} 3. e3 {[%clk 0:02:56.6]} 3... Nf6 {[%clk 0:02:53.7]}
4. b3 {[%clk 0:02:55.9]} 4... Bg4 {[%clk 0:02:49.6]} 5. Bb2 {[%clk 0:02:56.1]}
5... e6 {[%clk 0:02:49.1]} 6. Be2 {[%clk 0:02:54.6]} 6... Nbd7 {[%clk
0:02:49.2]} 7. O-O {[%clk 0:02:55.1]} 7... Bd6 {[%clk 0:02:48.9]} 8. d4 {[%clk
0:02:55.8]} 8... Ne4 {[%clk 0:02:38.6]} 9. Nbd2 {[%clk 0:02:54.9]} 9... f5
{[%clk 0:02:37.4]} 10. Ne5 {[%clk 0:02:51.9]} 10... Bxe2 {[%clk 0:02:34]} 11.
Qxe2 {[%clk 0:02:52.8]} 11... Nxd2 {[%clk 0:02:33.9]} 12. Qxd2 {[%clk 0:02:53]}
12... Nf6 {[%clk 0:02:29.1]} 13. f3 {[%clk 0:02:49.5]} 13... O-O {[%clk
0:02:28.3]} 14. a4 {[%clk 0:02:48.1]} 14... dxc4 {[%clk 0:02:22.3]} 15. Nxc4
{[%clk 0:02:47.7]} 15... Bc7 {[%clk 0:02:18.8]} 16. Ba3 {[%clk 0:02:43]} 16...
Re8 {[%clk 0:02:17.5]} 17. Rad1 {[%clk 0:02:41.3]} 17... Nd5 {[%clk 0:02:05.8]}
18. g3 {[%clk 0:02:31.4]} 18... Qg5 {[%clk 0:01:44.6]} 19. e4 {[%clk 0:02:27.6]}
19... Qxd2 {[%clk 0:01:35]} 20. Rxd2 {[%clk 0:02:28.5]} 20... Nf6 {[%clk
0:01:34.7]} 21. Bd6 {[%clk 0:02:26.1]} 21... Rac8 {[%clk 0:01:29.5]} 22. Bxc7
{[%clk 0:02:09.6]} 22... Rxc7 {[%clk 0:01:29.6]} 23. exf5 {[%clk 0:02:01.6]}
23... exf5 {[%clk 0:01:28.2]} 24. Kf2 {[%clk 0:02:01.6]} 24... Rce7 {[%clk
0:01:23.8]} 25. Nd6 {[%clk 0:02:00.7]} 25... Rd8 {[%clk 0:01:18]} 26. Nxf5
{[%clk 0:02:00.5]} 26... Red7 {[%clk 0:01:18.4]} 27. Rfd1 {[%clk 0:01:57.7]}
27... Nd5 {[%clk 0:01:13.8]} 28. Ne3 {[%clk 0:01:57.1]} 28... Kf7 {[%clk
0:01:11.6]} 29. Nc4 {[%clk 0:01:56.4]} 29... Kg8 {[%clk 0:01:08.7]} 30. Ne5
{[%clk 0:01:56]} 30... Re7 {[%clk 0:01:07.1]} 31. f4 {[%clk 0:01:56.4]} 31...
Nf6 {[%clk 0:01:04.6]} 32. Kf3 {[%clk 0:01:56.1]} 32... Nd5 {[%clk 0:01:02.8]}
33. Re1 {[%clk 0:01:55.3]} 33... Rde8 {[%clk 0:01:01.6]} 34. Rde2 {[%clk
0:01:51.4]} 34... Nc3 {[%clk 0:00:58.9]} 35. Rb2 {[%clk 0:01:50.3]} 35... a6
{[%clk 0:00:51.2]} 36. Rc1 {[%clk 0:01:48.6]} 36... Nd5 {[%clk 0:00:46.6]} 37.
b4 {[%clk 0:01:49.2]} 37... g6 {[%clk 0:00:43.5]} 38. b5 {[%clk 0:01:48.1]}
38... cxb5 {[%clk 0:00:37.4]} 39. axb5 {[%clk 0:01:49]} 39... a5 {[%clk
0:00:35.4]} 40. Rc5 {[%clk 0:01:44.5]} 40... Nb6 {[%clk 0:00:32]} 41. Ra2 {[%clk
0:01:42.4]} 41... a4 {[%clk 0:00:31.7]} 42. Ke4 {[%clk 0:01:36.2]} 42... Rd8
{[%clk 0:00:26.9]} 43. d5 {[%clk 0:01:33.8]} 43... Kg7 {[%clk 0:00:19.8]} 44.
Kd4 {[%clk 0:01:33.3]} 44... Kf6 {[%clk 0:00:18.3]} 45. Nc4 {[%clk 0:01:30.2]}
45... Nxc4 {[%clk 0:00:09.2]} 46. Rxc4 {[%clk 0:01:31.1]} 46... Red7 {[%clk
0:00:08]} 47. Rc5 {[%clk 0:01:31.4]} 47... b6 {[%clk 0:00:08]} 48. Rc6+ {[%clk
0:01:31.6]} 48... Kf5 {[%clk 0:00:08.9]} 49. Rxb6 {[%clk 0:01:21.5]} 49... Rxd5+
{[%clk 0:00:09.1]} 50. Kc3 {[%clk 0:01:22.2]} 50... Rd3+ {[%clk 0:00:07.5]} 51.
Kb4 {[%clk 0:01:22.9]} 51... R8d4+ {[%clk 0:00:08.4]} 52. Ka5 {[%clk 0:01:23.1]}
52... a3 {[%clk 0:00:09.3]} 53. Rc6 {[%clk 0:01:22]} 53... Rb3 {[%clk 0:00:09]}
54. b6 {[%clk 0:01:18.8]} 54... Rdb4 {[%clk 0:00:09.2]} 55. h3 {[%clk 0:01:06]}
55... Ke4 {[%clk 0:00:06.9]} 56. Rac2 {[%clk 0:00:59.3]} 56... Kf3 {[%clk
0:00:05.2]} 57. R6c3+ {[%clk 0:00:55.2]} 57... Ke4 {[%clk 0:00:03.9]} 58. Rc4+
{[%clk 0:00:55.3]} 58... Rxc4 {[%clk 0:00:03]} 59. Rxc4+ {[%clk 0:00:56.2]}
59... Kd3 {[%clk 0:00:03.5]} 60. Ra4 {[%clk 0:00:54.2]} 1-0

[Event "Late-Titled-Tuesday-Blitz-November-28-2023"]
[Site "Chess.com"]
[Date "2023.11.28"]
[Round "1"]
[White "Hoshka"]
[Black "zajka-molotok"]
[Result "0-1"]
[WhiteElo "2135"]
[BlackElo "2533"]
[TimeControl "180+1"]
[EndTime "14:07:44 PST"]
[Termination "zajka-molotok won by resignation"]

1. d4 {[%clk 0:03:00]} 1... d5 {[%clk 0:02:56.3]} 2. c4 {[%clk 0:02:59.8]} 2...
e6 {[%clk 0:02:24.1]} 3. g3 {[%clk 0:02:58.6]} 3... Nf6 {[%clk 0:02:18.6]} 4.
Bg2 {[%clk 0:02:58.3]} 4... c6 {[%clk 0:02:15]} 5. Nf3 {[%clk 0:02:57.2]} 5...
Bd6 {[%clk 0:02:11]} 6. O-O {[%clk 0:02:56.3]} 6... O-O {[%clk 0:02:07.4]} 7.
Qc2 {[%clk 0:02:54.7]} 7... Ne4 {[%clk 0:02:04.6]} 8. Nfd2 {[%clk 0:02:48.9]}
8... f5 {[%clk 0:01:58.9]} 9. f3 {[%clk 0:02:48.5]} 9... Nf6 {[%clk 0:01:40.1]}
10. e4 {[%clk 0:02:44.8]} 10... fxe4 {[%clk 0:01:38.5]} 11. fxe4 {[%clk
0:02:44.8]} 11... e5 {[%clk 0:01:39]} 12. exd5 {[%clk 0:02:39.8]} 12... exd4
{[%clk 0:01:37]} 13. c5 {[%clk 0:02:26]} 13... Be5 {[%clk 0:01:29]} 14. Nf3
{[%clk 0:02:18.8]} 14... Qxd5 {[%clk 0:01:24.5]} 15. Nxe5 {[%clk 0:02:16.1]}
15... Qxe5 {[%clk 0:01:25.4]} 16. Bf4 {[%clk 0:02:15.8]} 16... Qh5 {[%clk
0:01:22.4]} 17. Qc4+ {[%clk 0:02:04]} 17... Kh8 {[%clk 0:01:16.4]} 18. Qxd4
{[%clk 0:02:03.7]} 18... Bh3 {[%clk 0:01:13.2]} 19. Nc3 {[%clk 0:01:56.6]} 19...
Nbd7 {[%clk 0:01:10]} 20. Rae1 {[%clk 0:01:27.4]} 20... Bxg2 {[%clk 0:01:08.1]}
21. Kxg2 {[%clk 0:01:27.1]} 21... Qxc5 {[%clk 0:00:49.7]} 22. Qxc5 {[%clk
0:01:26.2]} 22... Nxc5 {[%clk 0:00:50.6]} 23. Bd6 {[%clk 0:01:25.3]} 23... Nd3
{[%clk 0:00:50.1]} 24. Bxf8 {[%clk 0:01:22.9]} 24... Nxe1+ {[%clk 0:00:49.1]}
25. Rxe1 {[%clk 0:01:22.8]} 25... Rxf8 {[%clk 0:00:49.7]} 26. Re7 {[%clk
0:01:21.4]} 26... Rb8 {[%clk 0:00:48]} 27. Na4 {[%clk 0:01:13.2]} 27... Nd5
{[%clk 0:00:38.7]} 28. Rd7 {[%clk 0:01:12.6]} 28... Nb6 {[%clk 0:00:36.9]} 29.
Nxb6 {[%clk 0:01:01.1]} 29... axb6 {[%clk 0:00:37.8]} 30. Kf3 {[%clk 0:01:01.4]}
30... b5 {[%clk 0:00:33.4]} 31. Ke4 {[%clk 0:00:57.6]} 31... h6 {[%clk
0:00:29.2]} 32. Kd4 {[%clk 0:00:55.4]} 32... b6 {[%clk 0:00:25]} 33. Rc7 {[%clk
0:00:46.8]} 33... c5+ {[%clk 0:00:24.3]} 34. Kd5 {[%clk 0:00:46.4]} 34... b4
{[%clk 0:00:18.3]} 35. Kc6 {[%clk 0:00:42.9]} 35... Ra8 {[%clk 0:00:18]} 36.
Kxb6 {[%clk 0:00:41.7]} 36... Rxa2 {[%clk 0:00:17.4]} 37. b3 {[%clk 0:00:41.2]}
37... Rb2 {[%clk 0:00:15]} 38. Kxc5 {[%clk 0:00:30.7]} 38... Rxb3 {[%clk
0:00:15]} 39. Ra7 {[%clk 0:00:24.4]} 39... Rb2 {[%clk 0:00:13.7]} 40. h4 {[%clk
0:00:23.5]} 40... Kh7 {[%clk 0:00:13.4]} 41. g4 {[%clk 0:00:21.1]} 41... Rg2
{[%clk 0:00:10.9]} 42. g5 {[%clk 0:00:20.2]} 42... h5 {[%clk 0:00:09.9]} 43.
Kxb4 {[%clk 0:00:15.8]} 43... Rg4+ {[%clk 0:00:09.9]} 44. Kc5 {[%clk 0:00:15.7]}
44... Rxh4 {[%clk 0:00:10.8]} 45. Kd6 {[%clk 0:00:14.3]} 45... Rg4 {[%clk
0:00:10.7]} 46. Ra5 {[%clk 0:00:13]} 46... Kg6 {[%clk 0:00:11.1]} 47. Ke6 {[%clk
0:00:06]} 47... Rxg5 {[%clk 0:00:11.3]} 0-1